[Event "*** SCC Grand Prix: Titled Tuesday Blitz"]
[Site "Chess.com"]
[Date "2020.09.08"]
[Round "6"]
[White "Misticpikachu"]
[Black "Olga_Girya"]
[Result "1-0"]
[WhiteElo "2289"]
[BlackElo "2480"]
[TimeControl "180+1"]
[EndTime "11:08:29 PDT"]
[Termination "Misticpikachu won by resignation"]

1. c4 {[%clk 0:03:00.9]} 1... c6 {[%clk 0:02:57.7]} 2. Nf3 {[%clk 0:02:59.8]}
2... d5 {[%clk 0:02:57.7]} 3. e3 {[%clk 0:03:00.2]} 3... Nf6 {[%clk 0:02:57.9]}
4. Nc3 {[%clk 0:03:00.7]} 4... e6 {[%clk 0:02:53.4]} 5. b3 {[%clk 0:03:00.8]}
5... Bd6 {[%clk 0:02:52.8]} 6. Bb2 {[%clk 0:02:59.9]} 6... O-O {[%clk
0:02:51.9]} 7. Qc2 {[%clk 0:02:59.6]} 7... e5 {[%clk 0:02:48.1]} 8. cxd5 {[%clk
0:02:58.7]} 8... cxd5 {[%clk 0:02:48.3]} 9. Nb5 {[%clk 0:02:58.9]} 9... Nc6
{[%clk 0:02:40.5]} 10. Nxd6 {[%clk 0:02:57.3]} 10... Qxd6 {[%clk 0:02:40.5]} 11.
a3 {[%clk 0:02:58.2]} 11... Bg4 {[%clk 0:02:35.8]} 12. Be2 {[%clk 0:02:55.3]}
12... Rac8 {[%clk 0:02:34.2]} 13. Qd1 {[%clk 0:02:52]} 13... d4 {[%clk
0:02:23.3]} 14. Nxd4 {[%clk 0:02:30.8]} 14... Nxd4 {[%clk 0:02:22.7]} 15. exd4
{[%clk 0:02:28.5]} 15... Bxe2 {[%clk 0:02:17.2]} 16. Qxe2 {[%clk 0:02:28.5]}
16... exd4 {[%clk 0:02:15.2]} 17. O-O {[%clk 0:02:28.6]} 17... Rc2 {[%clk
0:01:36.1]} 18. Rab1 {[%clk 0:02:21.7]} 18... d3 {[%clk 0:01:35.7]} 19. Qf3
{[%clk 0:02:16.3]} 19... Qd5 {[%clk 0:01:14.5]} 20. Qe3 {[%clk 0:01:37.4]} 20...
Ne4 {[%clk 0:01:08.9]} 21. Rfd1 {[%clk 0:01:10.8]} 21... Nc5 {[%clk 0:01:05.5]}
22. b4 {[%clk 0:00:51.4]} 22... Ne6 {[%clk 0:01:02.3]} 23. Bc3 {[%clk
0:00:46.2]} 23... b6 {[%clk 0:00:59.5]} 24. a4 {[%clk 0:00:45.3]} 24... Rc8
{[%clk 0:00:51]} 25. a5 {[%clk 0:00:39.8]} 25... Qb5 {[%clk 0:00:37.3]} 26. axb6
{[%clk 0:00:32.2]} 26... axb6 {[%clk 0:00:37.3]} 27. Ra1 {[%clk 0:00:32.8]}
27... h6 {[%clk 0:00:33.2]} 28. Ra7 {[%clk 0:00:31.8]} 28... Rc4 {[%clk
0:00:28.8]} 29. Ra8+ {[%clk 0:00:23.5]} 29... Kh7 {[%clk 0:00:27.1]} 30. Qxd3+
{[%clk 0:00:23.7]} 30... g6 {[%clk 0:00:19.2]} 31. Qxc2 {[%clk 0:00:23.6]} 31...
Nd4 {[%clk 0:00:17.8]} 32. Qb2 {[%clk 0:00:17.9]} 32... Qh5 {[%clk 0:00:12.3]}
33. Re1 {[%clk 0:00:10.5]} 33... Nf3+ {[%clk 0:00:08.9]} 34. gxf3 {[%clk
0:00:08.6]} 34... Rg4+ {[%clk 0:00:08.9]} 35. fxg4 {[%clk 0:00:07]} 35... Qxg4+
{[%clk 0:00:09.4]} 36. Kf1 {[%clk 0:00:07.9]} 36... Qh3+ {[%clk 0:00:09.6]} 37.
Ke2 {[%clk 0:00:08.4]} 37... Qg4+ {[%clk 0:00:09.7]} 38. Kd3 {[%clk 0:00:08.8]}
38... Qf5+ {[%clk 0:00:08.9]} 39. Re4 {[%clk 0:00:08.5]} 39... Qf3+ {[%clk
0:00:08.8]} 40. Re3 {[%clk 0:00:08.3]} 40... Qxa8 {[%clk 0:00:07.6]} 41. Be5
{[%clk 0:00:05.6]} 41... Qd5+ {[%clk 0:00:07.5]} 42. Qd4 {[%clk 0:00:06.5]}
42... Qb3+ {[%clk 0:00:07.7]} 43. Ke2 {[%clk 0:00:07.1]} 43... Qe6 {[%clk
0:00:07]} 44. Qd8 {[%clk 0:00:07]} 44... Qg4+ {[%clk 0:00:06.4]} 45. Kd3 {[%clk
0:00:07]} 45... Qf5+ {[%clk 0:00:05.9]} 46. Kc3 {[%clk 0:00:07.1]} 46... g5
{[%clk 0:00:04.9]} 47. Qh8+ {[%clk 0:00:07]} 47... Kg6 {[%clk 0:00:04.7]} 48.
Qg7+ {[%clk 0:00:07.3]} 48... Kh5 {[%clk 0:00:05]} 49. Qf6 {[%clk 0:00:07.7]}
49... Qc8+ {[%clk 0:00:04.9]} 50. Kb2 {[%clk 0:00:07.4]} 50... Qd7 {[%clk
0:00:04.9]} 51. Bc3 {[%clk 0:00:04.3]} 51... Qg4 {[%clk 0:00:03.9]} 52. Qf3
{[%clk 0:00:03.7]} 1-0

[Event "*** SCC Grand Prix: Titled Tuesday Blitz"]
[Site "Chess.com"]
[Date "2020.09.08"]
[Round "6"]
[White "MikaelyanArman"]
[Black "ArjunErigaisi2003"]
[Result "1-0"]
[WhiteElo "2759"]
[BlackElo "3031"]
[TimeControl "180+1"]
[EndTime "11:08:30 PDT"]
[Termination "MikaelyanArman won by resignation"]

1. d4 {[%clk 0:03:00.9]} 1... e6 {[%clk 0:02:59]} 2. c4 {[%clk 0:03:00.9]} 2...
d5 {[%clk 0:02:58.4]} 3. Nf3 {[%clk 0:03:01.1]} 3... Nf6 {[%clk 0:02:58]} 4. Nc3
{[%clk 0:03:01.1]} 4... c6 {[%clk 0:02:56.5]} 5. Bg5 {[%clk 0:02:57.4]} 5...
dxc4 {[%clk 0:02:52.6]} 6. e4 {[%clk 0:02:57.3]} 6... b5 {[%clk 0:02:49.6]} 7.
e5 {[%clk 0:02:57.5]} 7... h6 {[%clk 0:02:50.1]} 8. Bh4 {[%clk 0:02:57.6]} 8...
g5 {[%clk 0:02:50.8]} 9. Nxg5 {[%clk 0:02:57.8]} 9... hxg5 {[%clk 0:02:51.7]}
10. Bxg5 {[%clk 0:02:58.7]} 10... Nbd7 {[%clk 0:02:52.6]} 11. g3 {[%clk
0:02:56.2]} 11... Bb7 {[%clk 0:02:50.4]} 12. exf6 {[%clk 0:02:35.2]} 12... Qb6
{[%clk 0:02:22.8]} 13. Bg2 {[%clk 0:02:33.4]} 13... O-O-O {[%clk 0:02:21.9]} 14.
O-O {[%clk 0:02:21.2]} 14... c5 {[%clk 0:02:20.9]} 15. d5 {[%clk 0:02:21.2]}
15... b4 {[%clk 0:02:19.1]} 16. Rb1 {[%clk 0:02:19.6]} 16... Qa6 {[%clk
0:02:18]} 17. dxe6 {[%clk 0:02:13.8]} 17... Bxg2 {[%clk 0:02:13.9]} 18. e7
{[%clk 0:02:05.3]} 18... Bxe7 {[%clk 0:01:43.7]} 19. fxe7 {[%clk 0:02:06.2]}
19... Rdg8 {[%clk 0:01:40.4]} 20. Kxg2 {[%clk 0:01:16.6]} 20... Rxg5 {[%clk
0:01:37.8]} 21. Ne4 {[%clk 0:01:14]} 21... Qc6 {[%clk 0:01:26.5]} 22. f3 {[%clk
0:01:05.6]} 22... Rd5 {[%clk 0:01:20.8]} 23. Qe2 {[%clk 0:01:05.5]} 23... Ne5
{[%clk 0:01:06.2]} 24. Rbd1 {[%clk 0:00:58.9]} 24... Nd3 {[%clk 0:01:00.7]} 25.
b3 {[%clk 0:00:50.8]} 25... Qg6 {[%clk 0:00:42.8]} 26. Nd6+ {[%clk 0:00:43.5]}
26... Rxd6 {[%clk 0:00:39]} 27. e8=Q+ {[%clk 0:00:43]} 27... Rxe8 {[%clk
0:00:39.5]} 28. Qxe8+ {[%clk 0:00:43.8]} 28... Rd8 {[%clk 0:00:40.4]} 29. Qe3
{[%clk 0:00:33.4]} 29... c3 {[%clk 0:00:37.3]} 30. Rxd3 {[%clk 0:00:30.8]} 30...
Rxd3 {[%clk 0:00:34.2]} 31. Qxc5+ {[%clk 0:00:30.6]} 31... Kd8 {[%clk
0:00:34.2]} 32. Re1 {[%clk 0:00:25.6]} 32... Qd6 {[%clk 0:00:21.1]} 33. Qa5+
{[%clk 0:00:17.5]} 33... Qb6 {[%clk 0:00:06.3]} 34. Qg5+ {[%clk 0:00:17]} 34...
Kc7 {[%clk 0:00:06.9]} 35. Re7+ {[%clk 0:00:13.6]} 35... Rd7 {[%clk 0:00:06.3]}
36. Qe5+ {[%clk 0:00:12.4]} 36... Qd6 {[%clk 0:00:06.8]} 37. Qa5+ {[%clk
0:00:09.8]} 37... Qb6 {[%clk 0:00:06.2]} 38. Qe5+ {[%clk 0:00:07]} 38... Kc8
{[%clk 0:00:06.8]} 39. Re8+ {[%clk 0:00:06.3]} 39... Rd8 {[%clk 0:00:07.4]} 40.
Qf5+ {[%clk 0:00:05.7]} 40... Kb7 {[%clk 0:00:07.3]} 41. Qxf7+ {[%clk
0:00:05.3]} 41... Qc7 {[%clk 0:00:06.6]} 42. Re7 {[%clk 0:00:04.9]} 42... Rc8
{[%clk 0:00:04.6]} 43. Rxc7+ {[%clk 0:00:04.7]} 43... Rxc7 {[%clk 0:00:05.5]}
44. Qd5+ {[%clk 0:00:05.2]} 44... Rc6 {[%clk 0:00:05.9]} 45. Qd7+ {[%clk
0:00:04.3]} 45... Kb6 {[%clk 0:00:06]} 46. Qd4+ {[%clk 0:00:04.4]} 46... Kb5
{[%clk 0:00:06.2]} 47. Qd3+ {[%clk 0:00:04.5]} 47... Kb6 {[%clk 0:00:06.1]} 48.
Qc2 {[%clk 0:00:03.9]} 48... Rd6 {[%clk 0:00:06.6]} 49. Kh3 {[%clk 0:00:03.7]}
49... Rd2 {[%clk 0:00:07]} 50. Qg6+ {[%clk 0:00:03.7]} 50... Kc5 {[%clk
0:00:06.8]} 51. Qf5+ {[%clk 0:00:04.2]} 51... Kd4 {[%clk 0:00:06.8]} 52. Qe4+
{[%clk 0:00:04.3]} 52... Kc5 {[%clk 0:00:07.1]} 53. Qc4+ {[%clk 0:00:05]} 1-0

[Event "*** SCC Grand Prix: Titled Tuesday Blitz"]
[Site "Chess.com"]
[Date "2020.09.08"]
[Round "6"]
[White "denispopov"]
[Black "Chessbard1972"]
[Result "1-0"]
[WhiteElo "1959"]
[BlackElo "2344"]
[TimeControl "180+1"]
[EndTime "11:08:31 PDT"]
[Termination "denispopov won on time"]

1. e4 {[%clk 0:03:00.9]} 1... c5 {[%clk 0:02:59.1]} 2. Nc3 {[%clk 0:03:00.7]}
2... a6 {[%clk 0:02:58.9]} 3. d4 {[%clk 0:03:00.1]} 3... cxd4 {[%clk 0:02:58.5]}
4. Qxd4 {[%clk 0:03:01]} 4... Nc6 {[%clk 0:02:58.1]} 5. Qd2 {[%clk 0:03:00.3]}
5... e6 {[%clk 0:02:57.8]} 6. b3 {[%clk 0:02:57.4]} 6... Nf6 {[%clk 0:02:57.6]}
7. Bb2 {[%clk 0:02:57.7]} 7... Bb4 {[%clk 0:02:58.1]} 8. Bd3 {[%clk 0:02:57.3]}
8... d5 {[%clk 0:02:56.8]} 9. exd5 {[%clk 0:02:57.2]} 9... Nxd5 {[%clk
0:02:56.7]} 10. a3 {[%clk 0:02:56.8]} 10... Bxc3 {[%clk 0:02:55.1]} 11. Bxc3
{[%clk 0:02:57.7]} 11... Nxc3 {[%clk 0:02:54.9]} 12. Qxc3 {[%clk 0:02:58.6]}
12... O-O {[%clk 0:02:54.1]} 13. Nf3 {[%clk 0:02:58.1]} 13... Qe7 {[%clk
0:02:53.6]} 14. O-O {[%clk 0:02:54.3]} 14... Bd7 {[%clk 0:02:44.3]} 15. Rad1
{[%clk 0:02:50.8]} 15... Rac8 {[%clk 0:02:43]} 16. Qd2 {[%clk 0:02:50.9]} 16...
h6 {[%clk 0:02:34.5]} 17. Bh7+ {[%clk 0:02:44.9]} 17... Kxh7 {[%clk 0:02:33.4]}
18. Qxd7 {[%clk 0:02:45.8]} 18... Rc7 {[%clk 0:02:32.8]} 19. Qxe7 {[%clk
0:02:44]} 19... Nxe7 {[%clk 0:02:32.1]} 20. c4 {[%clk 0:02:44.1]} 20... b5
{[%clk 0:02:31.4]} 21. Ne5 {[%clk 0:02:08.5]} 21... f6 {[%clk 0:02:14.1]} 22.
Nd7 {[%clk 0:02:04.1]} 22... Re8 {[%clk 0:02:02.8]} 23. Nb6 {[%clk 0:01:42.6]}
23... Rb8 {[%clk 0:01:52.2]} 24. Nd7 {[%clk 0:01:37.1]} 24... Re8 {[%clk
0:01:44.9]} 25. Nb6 {[%clk 0:01:35.9]} 25... Rc6 {[%clk 0:01:40.5]} 26. Nd7
{[%clk 0:01:25.6]} 26... bxc4 {[%clk 0:01:38.3]} 27. bxc4 {[%clk 0:01:20.1]}
27... Rxc4 {[%clk 0:01:37.6]} 28. Rfe1 {[%clk 0:01:20.6]} 28... e5 {[%clk
0:01:35.2]} 29. Rd6 {[%clk 0:01:16.6]} 29... Ra4 {[%clk 0:01:34.6]} 30. Rxf6
{[%clk 0:01:11.3]} 30... Rd8 {[%clk 0:01:14.4]} 31. Rd6 {[%clk 0:01:08.9]} 31...
Nf5 {[%clk 0:01:01]} 32. Nf6+ {[%clk 0:01:07.7]} 32... gxf6 {[%clk 0:00:57.7]}
33. Rxd8 {[%clk 0:01:06.5]} 33... Rxa3 {[%clk 0:00:57.2]} 34. Rd7+ {[%clk
0:01:05.5]} 34... Kg6 {[%clk 0:00:56.4]} 35. Rb7 {[%clk 0:01:01.9]} 35... Nd4
{[%clk 0:00:55.5]} 36. h3 {[%clk 0:00:57.6]} 36... a5 {[%clk 0:00:54.7]} 37. Rb6
{[%clk 0:00:55.8]} 37... Kf5 {[%clk 0:00:52.3]} 38. g4+ {[%clk 0:00:54.3]} 38...
Kg5 {[%clk 0:00:52]} 39. Kg2 {[%clk 0:00:43.2]} 39... a4 {[%clk 0:00:45.2]} 40.
Reb1 {[%clk 0:00:37.5]} 40... Ne2 {[%clk 0:00:38.7]} 41. Ra6 {[%clk 0:00:34.4]}
41... Nf4+ {[%clk 0:00:37.9]} 42. Kg1 {[%clk 0:00:30.1]} 42... Nxh3+ {[%clk
0:00:35.7]} 43. Kf1 {[%clk 0:00:27.5]} 43... Nf4 {[%clk 0:00:32.1]} 44. Ke1
{[%clk 0:00:18.7]} 44... Ra2 {[%clk 0:00:27.1]} 45. Rbb6 {[%clk 0:00:15.8]}
45... a3 {[%clk 0:00:19.4]} 46. Rxf6 {[%clk 0:00:14.5]} 46... Ra1+ {[%clk
0:00:18.3]} 47. Kd2 {[%clk 0:00:13.4]} 47... Ra2+ {[%clk 0:00:16.2]} 48. Kc3
{[%clk 0:00:11.6]} 48... Rxf2 {[%clk 0:00:14.6]} 49. Rxh6 {[%clk 0:00:08.5]}
49... a2 {[%clk 0:00:09.5]} 50. Rh1 {[%clk 0:00:07.6]} 50... Kxg4 {[%clk
0:00:09.5]} 51. Ra1 {[%clk 0:00:05.8]} 51... Nd5+ {[%clk 0:00:05.1]} 52. Kb3
{[%clk 0:00:05.8]} 52... e4 {[%clk 0:00:03.1]} 53. R6xa2 {[%clk 0:00:05.4]}
53... e3 {[%clk 0:00:02]} 54. Rxf2 {[%clk 0:00:04.8]} 54... exf2 {[%clk
0:00:02.1]} 55. Rf1 {[%clk 0:00:05.3]} 1-0

[Event "*** SCC Grand Prix: Titled Tuesday Blitz"]
[Site "Chess.com"]
[Date "2020.09.08"]
[Round "6"]
[White "Taron_Shagbazyan"]
[Black "Alexander_Zubov"]
[Result "0-1"]
[WhiteElo "2678"]
[BlackElo "2957"]
[TimeControl "180+1"]
[EndTime "11:08:35 PDT"]
[Termination "Alexander_Zubov won by resignation"]

1. d4 {[%clk 0:03:00.9]} 1... Nf6 {[%clk 0:02:59.4]} 2. c4 {[%clk 0:03:01.1]}
2... g6 {[%clk 0:02:59.3]} 3. g3 {[%clk 0:03:01.1]} 3... Bg7 {[%clk 0:02:53.7]}
4. Bg2 {[%clk 0:03:01]} 4... d5 {[%clk 0:02:53.5]} 5. cxd5 {[%clk 0:02:59]} 5...
Nxd5 {[%clk 0:02:54]} 6. Nf3 {[%clk 0:02:59.8]} 6... Nb6 {[%clk 0:02:52.2]} 7.
O-O {[%clk 0:02:59.7]} 7... Nc6 {[%clk 0:02:51.9]} 8. e3 {[%clk 0:02:59.7]} 8...
e5 {[%clk 0:02:51.8]} 9. Nc3 {[%clk 0:02:25.6]} 9... O-O {[%clk 0:02:30.2]} 10.
d5 {[%clk 0:02:25.3]} 10... Na5 {[%clk 0:02:24.3]} 11. e4 {[%clk 0:02:22.6]}
11... Nac4 {[%clk 0:02:23.3]} 12. Re1 {[%clk 0:02:15.1]} 12... h6 {[%clk
0:02:15.5]} 13. a4 {[%clk 0:02:14.6]} 13... a5 {[%clk 0:02:14.2]} 14. b3 {[%clk
0:02:14.5]} 14... Nd6 {[%clk 0:02:14.1]} 15. Bb2 {[%clk 0:02:00.1]} 15... Re8
{[%clk 0:02:07]} 16. Rc1 {[%clk 0:01:59.6]} 16... Bd7 {[%clk 0:02:04.7]} 17. Nb1
{[%clk 0:01:48.4]} 17... Bg4 {[%clk 0:01:49.5]} 18. h3 {[%clk 0:01:43.7]} 18...
Bxf3 {[%clk 0:01:48.9]} 19. Bxf3 {[%clk 0:01:43.8]} 19... f5 {[%clk 0:01:42.4]}
20. Nd2 {[%clk 0:01:41.5]} 20... Qd7 {[%clk 0:01:32.6]} 21. Bg2 {[%clk
0:01:35.7]} 21... Re7 {[%clk 0:01:27.6]} 22. Ba3 {[%clk 0:01:29.7]} 22... Rf8
{[%clk 0:01:20.3]} 23. Nc4 {[%clk 0:01:28.9]} 23... Nbxc4 {[%clk 0:01:17.8]} 24.
bxc4 {[%clk 0:01:28.6]} 24... b6 {[%clk 0:01:18.3]} 25. c5 {[%clk 0:01:25.7]}
25... bxc5 {[%clk 0:01:18.3]} 26. Bxc5 {[%clk 0:01:22.3]} 26... Ref7 {[%clk
0:01:15.7]} 27. Bxd6 {[%clk 0:01:13]} 27... cxd6 {[%clk 0:01:10.1]} 28. f3
{[%clk 0:00:55.8]} 28... h5 {[%clk 0:01:03]} 29. Rc6 {[%clk 0:00:53.6]} 29...
Bh6 {[%clk 0:00:59.6]} 30. Qd3 {[%clk 0:00:51.2]} 30... h4 {[%clk 0:00:53.7]}
31. g4 {[%clk 0:00:48.3]} 31... Bf4 {[%clk 0:00:33.7]} 32. Qa6 {[%clk
0:00:42.6]} 32... Rf6 {[%clk 0:00:29.2]} 33. Rb1 {[%clk 0:00:41.7]} 33... R8f7
{[%clk 0:00:24.3]} 34. Qc8+ {[%clk 0:00:34.7]} 34... Qxc8 {[%clk 0:00:21.4]} 35.
Rxc8+ {[%clk 0:00:35.6]} 35... Kg7 {[%clk 0:00:21.8]} 36. Rc6 {[%clk 0:00:35.3]}
36... fxg4 {[%clk 0:00:20.8]} 37. fxg4 {[%clk 0:00:33.7]} 37... Be3+ {[%clk
0:00:20.8]} 38. Kh1 {[%clk 0:00:33.9]} 38... Bc5 {[%clk 0:00:20.1]} 39. Ra6
{[%clk 0:00:30]} 39... Bb4 {[%clk 0:00:19.4]} 40. Rc6 {[%clk 0:00:19.3]} 40...
Rf2 {[%clk 0:00:19]} 41. Rcc1 {[%clk 0:00:19.4]} 41... Bc5 {[%clk 0:00:15.9]}
42. Rf1 {[%clk 0:00:19]} 42... Ra2 {[%clk 0:00:15.9]} 43. Rxf7+ {[%clk
0:00:15.5]} 43... Kxf7 {[%clk 0:00:16.8]} 44. Bf1 {[%clk 0:00:15.6]} 44... Rxa4
{[%clk 0:00:16.3]} 45. g5 {[%clk 0:00:15]} 45... Rxe4 {[%clk 0:00:15.2]} 46.
Rb7+ {[%clk 0:00:15.2]} 46... Kf8 {[%clk 0:00:15.7]} 47. Rb8+ {[%clk 0:00:14.9]}
47... Ke7 {[%clk 0:00:16.3]} 48. Rb7+ {[%clk 0:00:15.4]} 48... Kd8 {[%clk
0:00:16.9]} 49. Bb5 {[%clk 0:00:16.1]} 49... Re1+ {[%clk 0:00:15.8]} 50. Kg2
{[%clk 0:00:16.1]} 50... e4 {[%clk 0:00:14.7]} 51. Rg7 {[%clk 0:00:12.7]} 51...
Rg1+ {[%clk 0:00:14.2]} 52. Kh2 {[%clk 0:00:13.1]} 52... Rxg5 {[%clk 0:00:15.1]}
53. Rg8+ {[%clk 0:00:12.9]} 53... Kc7 {[%clk 0:00:14.4]} 54. Re8 {[%clk
0:00:13.8]} 54... e3 {[%clk 0:00:13.8]} 55. Re7+ {[%clk 0:00:12.6]} 55... Kb6
{[%clk 0:00:13.8]} 56. Bc6 {[%clk 0:00:13.1]} 56... Bd4 {[%clk 0:00:13.8]} 57.
Rb7+ {[%clk 0:00:13.1]} 57... Ka6 {[%clk 0:00:14]} 58. Rb5 {[%clk 0:00:14]}
58... e2 {[%clk 0:00:11.5]} 59. Rb1 {[%clk 0:00:14.2]} 59... Rg1 {[%clk
0:00:10.1]} 60. Bb5+ {[%clk 0:00:10.2]} 60... Ka7 {[%clk 0:00:09.8]} 0-1

[Event "*** SCC Grand Prix: Titled Tuesday Blitz"]
[Site "Chess.com"]
[Date "2020.09.08"]
[Round "6"]
[White "chessfrendz"]
[Black "picturesquecheck"]
[Result "1/2-1/2"]
[WhiteElo "2267"]
[BlackElo "2151"]
[TimeControl "180+1"]
[EndTime "11:08:36 PDT"]
[Termination "Game drawn - insufficient material"]

1. d4 {[%clk 0:03:00.9]} 1... Nf6 {[%clk 0:02:59.5]} 2. Nf3 {[%clk 0:03:00]}
2... e6 {[%clk 0:02:58.8]} 3. Bf4 {[%clk 0:03:00.1]} 3... d5 {[%clk 0:02:56.7]}
4. e3 {[%clk 0:02:59.7]} 4... Bd6 {[%clk 0:02:55.4]} 5. Bd3 {[%clk 0:02:58.6]}
5... O-O {[%clk 0:02:55]} 6. Nbd2 {[%clk 0:02:55]} 6... c5 {[%clk 0:02:54.9]} 7.
c3 {[%clk 0:02:53.7]} 7... Nc6 {[%clk 0:02:53.3]} 8. Bg3 {[%clk 0:02:52.1]} 8...
b6 {[%clk 0:02:51]} 9. Qe2 {[%clk 0:02:50.2]} 9... Bb7 {[%clk 0:02:49.1]} 10.
Ne5 {[%clk 0:02:49.9]} 10... Qc7 {[%clk 0:02:46.8]} 11. f4 {[%clk 0:02:48.9]}
11... Ne7 {[%clk 0:02:37.8]} 12. Bh4 {[%clk 0:02:47.7]} 12... Nd7 {[%clk
0:02:33.8]} 13. Bb5 {[%clk 0:02:34.1]} 13... Bxe5 {[%clk 0:02:24.4]} 14. Bxe7
{[%clk 0:02:32.6]} 14... Rfe8 {[%clk 0:02:24.1]} 15. Bxc5 {[%clk 0:02:25]} 15...
Bxf4 {[%clk 0:02:11.6]} 16. exf4 {[%clk 0:02:11]} 16... bxc5 {[%clk 0:02:09]}
17. dxc5 {[%clk 0:02:09.9]} 17... a6 {[%clk 0:02:02.2]} 18. Bxd7 {[%clk
0:02:08.2]} 18... Qxd7 {[%clk 0:02:02.2]} 19. Nb3 {[%clk 0:02:00.5]} 19... Qc7
{[%clk 0:02:00]} 20. O-O {[%clk 0:01:58.5]} 20... a5 {[%clk 0:01:59.4]} 21. Qe5
{[%clk 0:01:51.6]} 21... Qc6 {[%clk 0:01:52.4]} 22. Qd6 {[%clk 0:01:41.6]} 22...
Rec8 {[%clk 0:01:31.9]} 23. Qxc6 {[%clk 0:01:34.4]} 23... Rxc6 {[%clk
0:01:32.8]} 24. a4 {[%clk 0:01:19.2]} 24... Ba6 {[%clk 0:01:32]} 25. Rf2 {[%clk
0:01:12.6]} 25... Bc4 {[%clk 0:01:31.7]} 26. Nd4 {[%clk 0:01:11.9]} 26... Rxc5
{[%clk 0:01:31.7]} 27. Re1 {[%clk 0:01:08.9]} 27... Rb8 {[%clk 0:01:28.3]} 28.
f5 {[%clk 0:01:07.4]} 28... Rc7 {[%clk 0:01:15.5]} 29. fxe6 {[%clk 0:01:06.1]}
29... fxe6 {[%clk 0:01:15.6]} 30. Rxe6 {[%clk 0:01:04.5]} 30... Rcb7 {[%clk
0:01:13.1]} 31. Nc6 {[%clk 0:00:23.5]} 31... Rxb2 {[%clk 0:01:07.2]} 32. Rxb2
{[%clk 0:00:17.4]} 32... Rxb2 {[%clk 0:01:06.4]} 33. Nxa5 {[%clk 0:00:17.4]}
33... Rb1+ {[%clk 0:01:06.1]} 34. Kf2 {[%clk 0:00:16.7]} 34... Rf1+ {[%clk
0:01:05.8]} 35. Kg3 {[%clk 0:00:16.6]} 35... Rc1 {[%clk 0:01:04.7]} 36. Nxc4
{[%clk 0:00:15.6]} 36... dxc4 {[%clk 0:01:04.8]} 37. Re3 {[%clk 0:00:14.7]}
37... Ra1 {[%clk 0:01:04.2]} 38. Kf4 {[%clk 0:00:14.6]} 38... Rxa4 {[%clk
0:01:04]} 39. Ke5 {[%clk 0:00:15.2]} 39... Kf7 {[%clk 0:01:04]} 40. Kd4 {[%clk
0:00:15.7]} 40... Kf6 {[%clk 0:01:01.5]} 41. Re2 {[%clk 0:00:14.8]} 41... Kf5
{[%clk 0:00:59.9]} 42. Kc5 {[%clk 0:00:14.7]} 42... g5 {[%clk 0:00:57.4]} 43.
Kb5 {[%clk 0:00:14.9]} 43... Ra1 {[%clk 0:00:55.8]} 44. Kxc4 {[%clk 0:00:14.9]}
44... h5 {[%clk 0:00:56]} 45. Kd4 {[%clk 0:00:15.2]} 45... Rd1+ {[%clk
0:00:54.8]} 46. Kc5 {[%clk 0:00:14.1]} 46... h4 {[%clk 0:00:55.7]} 47. h3 {[%clk
0:00:13.5]} 47... Kf4 {[%clk 0:00:55.2]} 48. c4 {[%clk 0:00:13.8]} 48... Kg3
{[%clk 0:00:55.1]} 49. Kc6 {[%clk 0:00:13.5]} 49... Rg1 {[%clk 0:00:55.1]} 50.
c5 {[%clk 0:00:13]} 50... g4 {[%clk 0:00:52.9]} 51. hxg4 {[%clk 0:00:12]} 51...
Rxg2 {[%clk 0:00:53.1]} 52. Re1 {[%clk 0:00:09.3]} 52... Kxg4 {[%clk 0:00:51.3]}
53. Kc7 {[%clk 0:00:09.4]} 53... h3 {[%clk 0:00:51.1]} 54. c6 {[%clk 0:00:09.8]}
54... h2 {[%clk 0:00:51.5]} 55. Re4+ {[%clk 0:00:07.9]} 55... Kg3 {[%clk
0:00:49.4]} 56. Re3+ {[%clk 0:00:06.8]} 56... Kg4 {[%clk 0:00:49.5]} 57. Re4+
{[%clk 0:00:06.7]} 57... Kf3 {[%clk 0:00:48]} 58. Rh4 {[%clk 0:00:05.7]} 58...
Kg3 {[%clk 0:00:48.1]} 59. Rh7 {[%clk 0:00:04.1]} 59... Rg1 {[%clk 0:00:48.4]}
60. Kb8 {[%clk 0:00:02.9]} 60... Rb1+ {[%clk 0:00:46.7]} 61. Kc8 {[%clk
0:00:01.9]} 61... h1=Q {[%clk 0:00:46.1]} 62. Rxh1 {[%clk 0:00:02]} 62... Rxh1
{[%clk 0:00:46.8]} 63. c7 {[%clk 0:00:02.5]} 63... Kf4 {[%clk 0:00:46.1]} 64.
Kb7 {[%clk 0:00:02.9]} 64... Rb1+ {[%clk 0:00:46.1]} 65. Ka7 {[%clk 0:00:03.7]}
65... Rc1 {[%clk 0:00:45.7]} 66. Kb7 {[%clk 0:00:04.2]} 66... Rb1+ {[%clk
0:00:45.8]} 67. Ka7 {[%clk 0:00:04.7]} 67... Rc1 {[%clk 0:00:45.7]} 68. Kb7
{[%clk 0:00:05.1]} 68... Rxc7+ {[%clk 0:00:46.1]} 69. Kxc7 {[%clk 0:00:04.9]}
1/2-1/2